fUST/lending_fUST_20251231
["ID","MTS","AMOUNT","RATE_DAILY","PERIOD"]
[400132163,1767142257822,-151.0,0.00027397,7]
[400132164,1767142257831,-167.175208,0.00027397,7]
[400132165,1767142257840,-167.175208,0.00027397,7]
[400132166,1767142257850,-151.0,0.00027397,7]
[400132167,1767142257859,-167.175208,0.00027397,7]
[400132168,1767142257868,-289.107225,0.00027397,7]
[400132169,1767142257877,-167.175208,0.00027397,7]
[400132170,1767142257887,-167.175208,0.00027397,7]
[400132171,1767142257896,-167.175208,0.00027397,7]
[400132172,1767142257905,-167.175208,0.00027397,7]
[400132173,1767142257915,-167.175208,0.00027397,7]
[400132174,1767142257924,-167.175208,0.00027397,7]
[400132175,1767142257934,-167.175208,0.00027397,7]
[400132176,1767142257943,-167.175208,0.00027397,7]
[400132177,1767142257953,-167.175208,0.00027397,7]
[400132178,1767142257962,-167.175208,0.00027397,7]
[400132179,1767142257971,-167.175208,0.00027397,7]
[400132180,1767142257981,-167.175208,0.00027397,7]
[400132181,1767142257990,-167.175206,0.00027397,7]
[400132182,1767142258000,-151.0,0.00027397,7]
[400132183,1767142258009,-151.0,0.00027397,7]
[400132184,1767142258018,-151.0,0.00027397,7]
[400132185,1767142258027,-151.0,0.00027397,7]
[400132186,1767142258037,-151.0,0.00027397,7]
[400132187,1767142258047,-151.0,0.00027397,7]
[400132188,1767142258056,-151.0,0.00027397,7]
[400132189,1767142258065,-151.0,0.00027397,7]
[400132190,1767142258075,-151.0,0.00027397,7]
[400132191,1767142258084,-151.0,0.00027397,7]
[400132192,1767142258093,-151.0,0.00027397,7]
[400132193,1767142258102,-161.480743,0.00027397,7]
[400132194,1767142258112,-151.0,0.00027397,7]
[400132195,1767142258121,-151.0,0.00027397,7]
[400132196,1767142258130,-151.0,0.00027397,7]
[400132197,1767142258140,-151.0,0.00027397,7]
[400132198,1767142258149,-151.0,0.00027397,7]
[400132199,1767142258158,-151.0,0.00027397,7]
[400132200,1767142258170,-151.0,0.00027397,7]
[400132201,1767142258179,-151.0,0.00027397,7]
[400132202,1767142258188,-151.0,0.00027397,7]
[400132203,1767142258197,-151.0,0.00027397,7]
[400132204,1767142258206,-151.0,0.00027397,7]
[400132205,1767142258215,-151.0,0.00027397,7]
[400132206,1767142258223,-151.0,0.00027397,7]
[400132207,1767142258232,-151.0,0.00027397,7]
[400132208,1767142258242,-151.0,0.00027397,7]
[400132209,1767142258251,-228.766794,0.00027397,7]
[400132210,1767142258260,-264.153595,0.00027397,7]
[400132211,1767142258271,-151.0,0.00027397,7]
[400132212,1767142258280,-152.251076,0.00027397,7]
[400132213,1767142258289,-151.0,0.00027397,7]
[400132214,1767142258298,-151.0,0.00027397,7]
[400132215,1767142258306,-151.0,0.00027397,7]
[400132216,1767142258315,-151.0,0.00027397,7]
[400132217,1767142258324,-151.0,0.00027397,7]
[400132218,1767142258333,-151.0,0.00027397,7]
[400132219,1767142258342,-151.0,0.00027397,7]
[400132220,1767142258351,-151.0,0.00027397,7]
[400132221,1767142258361,-151.0,0.00027397,7]
[400132222,1767142258370,-151.0,0.00027397,7]
[400132223,1767142258379,-151.0,0.00027397,7]
[400132224,1767142258388,-151.0,0.00027397,7]
[400132225,1767142258397,-151.0,0.00027397,7]
[400132226,1767142258406,-151.0,0.00027397,7]
[400132227,1767142258417,-151.0,0.00027397,7]
[400132228,1767142258426,-151.0,0.00027397,7]
[400132229,1767142258435,-177.230616,0.00027397,7]
[400132230,1767142258444,-163.759573,0.00027397,7]
[400132231,1767142258453,-163.759573,0.00027397,7]
[400132232,1767142258463,-163.759573,0.00027397,7]
[400132233,1767142258473,-163.759573,0.00027397,7]
[400132234,1767142258482,-163.759573,0.00027397,7]
[400132235,1767142258491,-163.759573,0.00027397,7]
[400132236,1767142258500,-163.759573,0.00027397,7]
[400132237,1767142258509,-163.759573,0.00027397,7]
[400132238,1767142258519,-163.759573,0.00027397,7]
[400132239,1767142258528,-163.759573,0.00027397,7]
[400132240,1767142258537,-163.759573,0.00027397,7]
[400132241,1767142258547,-163.759573,0.00027397,7]
[400132242,1767142258556,-163.759573,0.00027397,7]
[400132243,1767142258565,-163.759573,0.00027397,7]
[400132244,1767142258574,-163.759573,0.00027397,7]
[400132245,1767142258583,-196.779997,0.00027397,7]
[400132246,1767142258593,-163.759573,0.00027397,7]
[400132247,1767142258602,-196.779997,0.00027397,7]
[400132248,1767142258611,-151.0,0.00027397,7]
[400132249,1767142258621,-163.759573,0.00027397,7]
[400132250,1767142258630,-163.759573,0.00027397,7]
[400132251,1767142258640,-196.779997,0.00027397,7]
[400132252,1767142258650,-151.0,0.00027397,7]
[400132253,1767142258659,-163.759573,0.00027397,7]
[400132254,1767142258668,-196.779997,0.00027397,7]
[400132255,1767142258678,-151.0,0.00027397,7]
[400132256,1767142258687,-163.759565,0.00027397,7]
[400132257,1767142258697,-196.779997,0.00027397,7]
[400132258,1767142258706,-151.0,0.00027397,7]
[400132259,1767142258715,-196.779997,0.00027397,7]
[400132260,1767142258725,-151.0,0.00027397,7]
[400132261,1767142258734,-196.779997,0.00027397,7]
[400132262,1767142258743,-151.0,0.00027397,7]
[400132263,1767142258753,-196.779997,0.00027397,7]
[400132264,1767142258762,-151.0,0.00027397,7]
[400132265,1767142258771,-196.779997,0.00027397,7]
[400132266,1767142258781,-187.622344,0.00027397,7]
[400132267,1767142258790,-196.779997,0.00027397,7]
[400132268,1767142258800,-196.779997,0.00027397,7]
[400132269,1767142258809,-196.779997,0.00027397,7]
[400132270,1767142258819,-196.779997,0.00027397,7]
[400132271,1767142258917,-196.779997,0.00027397,7]
[400132272,1767142258927,-196.779997,0.00027397,7]
[400132273,1767142258937,-196.779997,0.00027397,7]
[400132274,1767142258948,-196.779997,0.00027397,7]
[400132275,1767142258958,-196.779997,0.00027397,7]
[400132276,1767142258968,-196.779997,0.00027397,7]
[400132277,1767142258978,-196.78,0.00027397,7]
[400132278,1767142258988,-155.465049,0.00027397,7]
[400132279,1767142258998,-151.0,0.00027397,7]
[400132280,1767142259007,-151.0,0.00027397,7]
[400132281,1767142259017,-151.0,0.00027397,7]
[400132282,1767142259027,-151.0,0.00027397,7]
[400132283,1767142259036,-151.0,0.00027397,7]
[400132284,1767142259045,-151.0,0.00027397,7]
[400132285,1767142259055,-151.0,0.00027397,7]
[400132286,1767142259064,-151.0,0.00027397,7]
[400132287,1767142259073,-151.0,0.00027397,7]
[400132288,1767142259082,-151.0,0.00027397,7]
[400132289,1767142259091,-226.654427,0.00027397,7]
[400132290,1767142259101,-151.0,0.00027397,7]
[400132291,1767142259110,-151.0,0.00027397,7]
[400132292,1767142259119,-151.0,0.00027397,7]
[400132293,1767142259129,-151.0,0.00027397,7]
[400132294,1767142259138,-171.575957,0.00027397,7]
[400132295,1767142259147,-181.201324,0.00027397,7]
[400132296,1767142259158,-151.0,0.00027397,7]
[400132297,1767142259171,-151.0,0.00027397,7]
[400132298,1767142259180,-185.086695,0.00027397,7]
[400132299,1767142259190,-151.0,0.00027397,7]
[400132300,1767142259199,-151.0,0.00027397,7]
[400132301,1767142259211,-151.0,0.00027397,7]
[400132302,1767142259223,-151.0,0.00027397,7]
[400132303,1767142259238,-151.0,0.00027397,7]
[400132304,1767142259247,-151.0,0.00027397,7]
[400132305,1767142259257,-151.0,0.00027397,7]
[400132306,1767142259267,-180.131184,0.00027397,7]
[400132307,1767142259276,-151.0,0.00027397,7]
[400132308,1767142259285,-151.0,0.00027397,7]
[400132309,1767142259294,-151.0,0.00027397,7]
[400132310,1767142259303,-151.0,0.00027397,7]
[400132311,1767142259311,-154.178158,0.00027397,7]
[400132312,1767142259320,-151.0,0.00027397,7]
[400132313,1767142259329,-151.0,0.00027397,7]
[400132314,1767142259339,-151.0,0.00027397,7]
[400132315,1767142259347,-151.0,0.00027397,7]
[400132316,1767142259356,-151.0,0.00027397,7]
[400132317,1767142259365,-151.0,0.00027397,7]
[400132318,1767142259375,-151.0,0.00027397,7]
[400132319,1767142259384,-151.0,0.00027397,7]
[400132320,1767142259393,-151.0,0.00027397,7]
[400132321,1767142259402,-151.0,0.00027397,7]
[400132322,1767142259411,-151.0,0.00027397,7]
[400132323,1767142259420,-254.181627,0.00027397,7]
[400132324,1767142259429,-262.672947,0.00027397,7]
[400132325,1767142259439,-262.672947,0.00027397,7]
[400132326,1767142259449,-262.672947,0.00027397,7]
[400132327,1767142259459,-262.672947,0.00027397,7]
[400132328,1767142259468,-151.0,0.00027397,7]
[400132329,1767142259478,-262.672947,0.00027397,7]
[400132330,1767142259487,-151.0,0.00027397,7]
[400132331,1767142259497,-262.672947,0.00027397,7]
[400132332,1767142259507,-151.0,0.00027397,7]
[400132333,1767142259516,-262.672947,0.00027397,7]
[400132334,1767142259525,-151.0,0.00027397,7]
[400132335,1767142259534,-262.672947,0.00027397,7]
[400132336,1767142259544,-262.672947,0.00027397,7]
[400132337,1767142259554,-151.0,0.00027397,7]
[400132338,1767142259563,-262.672947,0.00027397,7]
[400132339,1767142259572,-151.0,0.00027397,7]
[400132340,1767142259582,-262.672947,0.00027397,7]
[400132341,1767142259591,-151.0,0.00027397,7]
[400132342,1767142259600,-151.0,0.00027397,7]
[400132343,1767142259609,-262.672947,0.00027397,7]
[400132344,1767142259619,-262.672947,0.00027397,7]
[400132345,1767142259628,-151.0,0.00027397,7]
[400132346,1767142259638,-262.672947,0.00027397,7]
[400132347,1767142259647,-262.672947,0.00027397,7]
[400132348,1767142259657,-262.672947,0.00027397,7]
[400132349,1767142259666,-262.672947,0.00027397,7]
[400132350,1767142259676,-262.672947,0.00027397,7]
[400132351,1767142259686,-151.0,0.00027397,7]
[400132352,1767142259696,-262.672947,0.00027397,7]
[400132353,1767142259705,-151.0,0.00027397,7]
[400132354,1767142259714,-262.672949,0.00027397,7]
[400132355,1767142259723,-151.0,0.00027397,7]
[400132356,1767142259732,-151.0,0.00027397,7]
[400132357,1767142259741,-151.0,0.00027397,7]
[400132358,1767142259750,-151.0,0.00027397,7]
[400132359,1767142259760,-299.908713,0.00027397,7]
[400132360,1767142259769,-151.0,0.00027397,7]
[400132361,1767142259778,-151.0,0.00027397,7]
[400132362,1767142259788,-151.0,0.00027397,7]
[400132363,1767142259797,-1005.058439,0.00027397,7]
[400132364,1767142259807,-151.0,0.00027397,7]
[400132365,1767142259817,-1005.058439,0.00027397,7]
[400132366,1767142259827,-1005.058439,0.00027397,7]
[400132367,1767142259837,-151.0,0.00027397,7]
[400132368,1767142259846,-1005.058439,0.00027397,7]
[400132369,1767142259856,-151.0,0.00027397,7]
[400132370,1767142259866,-151.0,0.00027397,7]
[400132371,1767142259876,-1005.058439,0.00027397,7]
[400132372,1767142259885,-151.0,0.00027397,7]
[400132373,1767142259896,-1005.058439,0.00027397,7]
[400132374,1767142259906,-1005.058439,0.00027397,7]
[400132375,1767142259916,-1005.058439,0.00027397,7]
[400132376,1767142259926,-1005.058439,0.00027397,7]
[400132377,1767142259936,-1005.058439,0.00027397,7]
[400132378,1767142259945,-1005.058439,0.00027397,7]
[400132379,1767142259955,-1005.058439,0.00027397,7]
[400132380,1767142259964,-1005.058439,0.00027397,7]
[400132381,1767142259974,-1005.058439,0.00027397,7]
[400132382,1767142259983,-1005.058439,0.00027397,7]
[400132383,1767142259992,-151.0,0.00027397,7]
[400132384,1767142260002,-1005.058439,0.00027397,7]
[400132385,1767142260011,-151.0,0.00027397,7]
[400132386,1767142260021,-151.000022,0.00027397,7]
[400132387,1767142260031,-151.0,0.00027397,7]
[400132388,1767142260041,-151.0,0.00027397,7]
[400132389,1767142260051,-151.0,0.00027397,7]
[400132390,1767142260061,-151.0,0.00027397,7]
[400132391,1767142260071,-151.0,0.00027397,7]
[400132392,1767142260081,-151.0,0.00027397,7]
[400132393,1767142260090,-151.0,0.00027397,7]
[400132394,1767142260100,-151.0,0.00027397,7]
[400132395,1767142260109,-151.0,0.00027397,7]
[400132396,1767142260119,-151.0,0.00027397,7]
[400132397,1767142260129,-151.0,0.00027397,7]
[400132398,1767142260139,-151.0,0.00027397,7]
[400132399,1767142260149,-151.0,0.00027397,7]
[400132400,1767142260158,-151.0,0.00027397,7]
[400132401,1767142260168,-151.0,0.00027397,7]
[400132402,1767142260178,-151.0,0.00027397,7]
[400132403,1767142260187,-151.0,0.00027397,7]
[400132404,1767142260197,-151.0,0.00027397,7]
[400132405,1767142260207,-151.176149,0.00027397,7]
[400132406,1767142260216,-398.478788,0.00027397,7]
[400132407,1767142260226,-398.478788,0.00027397,7]
[400132408,1767142260236,-398.478788,0.00027397,7]
[400132409,1767142260245,-398.478788,0.00027397,7]
[400132410,1767142260254,-398.478788,0.00027397,7]
[400132411,1767142260264,-398.478788,0.00027397,7]
[400132412,1767142260273,-151.0,0.00027397,7]
[400132413,1767142260282,-398.478788,0.00027397,7]
[400132414,1767142260291,-151.0,0.00027397,7]
[400132415,1767142260300,-398.478788,0.00027397,7]
[400132416,1767142260309,-151.0,0.00027397,7]
[400132417,1767142260319,-151.0,0.00027397,7]
[400132418,1767142260327,-398.478788,0.00027397,7]
[400132419,1767142260337,-398.478788,0.00027397,7]
[400132420,1767142260347,-398.478788,0.00027397,7]
[400132421,1767142260356,-151.0,0.00027397,7]
[400132422,1767142260365,-151.0,0.00027397,7]
[400132423,1767142260374,-398.478788,0.00027397,7]
[400132424,1767142260383,-293.894457,0.00027397,7]
[400132425,1767142260393,-151.0,0.00027397,7]
[400132426,1767142260402,-151.0,0.00027397,7]
[400132427,1767142260411,-398.478788,0.00027397,7]
[400132428,1767142260421,-398.478788,0.00027397,7]
[400132429,1767142260430,-398.478788,0.00027397,7]
[400132430,1767142260439,-398.478788,0.00027397,7]
[400132431,1767142260448,-151.0,0.00027397,7]
[400132432,1767142260457,-151.0,0.00027397,7]
[400132433,1767142260467,-151.0,0.00027397,7]
[400132434,1767142260476,-151.0,0.00027397,7]
[400132435,1767142260485,-151.0,0.00027397,7]
[400132436,1767142260494,-216.094051,0.00027397,7]
[400132437,1767142260503,-193.846419,0.00027397,7]
[400132438,1767142260513,-193.846419,0.00027397,7]
[400132439,1767142260523,-193.846419,0.00027397,7]
[400132440,1767142260532,-151.0,0.00027397,7]
[400132441,1767142260541,-193.846419,0.00027397,7]
[400132442,1767142260551,-193.846419,0.00027397,7]
[400132443,1767142260560,-193.846419,0.00027397,7]
[400132444,1767142260570,-193.846419,0.00027397,7]
[400132445,1767142260579,-193.846419,0.00027397,7]
[400132446,1767142260588,-193.846419,0.00027397,7]
[400132447,1767142260598,-193.846419,0.00027397,7]
[400132448,1767142260607,-193.846419,0.00027397,7]
[400132449,1767142260616,-193.846419,0.00027397,7]
[400132450,1767142260626,-193.846419,0.00027397,7]
[400132451,1767142260635,-193.846419,0.00027397,7]
[400132452,1767142260646,-151.0,0.00027397,7]
[400132453,1767142260656,-193.846419,0.00027397,7]
[400132454,1767142260665,-151.0,0.00027397,7]
[400132455,1767142260675,-193.846419,0.00027397,7]
[400132456,1767142260770,-272.459787,0.00027397,7]
[400132457,1767142260780,-151.0,0.00027397,7]
[400132458,1767142260789,-151.0,0.00027397,7]
[400132459,1767142260799,-151.0,0.00027397,7]
[400132460,1767142260808,-151.0,0.00027397,7]
[400132461,1767142260818,-366.8648694,0.00027453,2]
[400132462,1767142260827,-5888.0,0.00027488,2]
[400132463,1767142260836,-151.0,0.00027488,7]
[400132464,1767142260845,-500.0,0.00027499,5]
[400132465,1767142260854,-166.34,0.000275,7]
[400132466,1767142260864,-2000.0,0.000275,7]
[400132467,1767142260874,-8791.8759073,0.00027508,2]
[400132468,1767142260883,-138.55904769,0.00027523,3]
[400132469,1767142261039,-303.59,0.00027523,3]
[400132470,1767142261055,-283.85095231,0.00027523,3]
[400132471,1767142261064,-700.0,0.00027542,7]
[400132472,1767142261073,-516.13710769,0.00027597,7]
[400132473,1767142261084,-1023.59729684,0.00027597,7]
[400132474,1767142261157,-886.53,0.00027597,7]
[400132475,1767142261171,-3461.73559547,0.00027597,7]
[400132476,1767142261180,-207.61,0.000276,7]
[400132477,1767142261190,-164.88,0.000276,7]
[400132478,1767142261199,-595.37131296,0.00027607,2]
[400132479,1767142261210,-154.51578537,0.00027607,2]
[400132480,1767142261219,-151.0,0.00027671,7]
[400132481,1767142261228,-151.0,0.00027671,7]
[400132482,1767142261238,-151.0,0.00027671,7]
[400132483,1767142261247,-993.05,0.00027671,2]
[400132484,1767142261257,-4192.77,0.00027671,2]
[400132485,1767142261265,-726.0,0.00027679,3]
[400132486,1767142261275,-500.0,0.00027698,7]
[400132487,1767142261284,-160.46,0.000277,7]
[400132488,1767142261294,-250.0,0.000277,10]
[400132489,1767142261303,-21542.45865365,0.0002772,2]
[400132490,1767142261315,-2099.0,0.0002772,2]
[400132491,1767142261331,-784.57435279,0.0002772,2]
[400132492,1767142261342,-26359.08661418,0.0002772,2]
[400132493,1767142261352,-436.95228894,0.0002772,2]
[400132494,1767142261369,-851.78723781,0.00016301,2]
[400132495,1767142261379,-1434.71368843,0.00016301,2]
[400132496,1767142261390,-305.00000001,0.00016301,2]
[400132497,1767142261401,-9605.77786763,0.00016301,2]
[400132498,1767142261411,-26049.02608812,0.0002772,2]
[400132499,1767142304222,256.979,0.00012605,2]
[400132500,1767142324996,150.0,0.00012286,2]
[400132501,1767142396631,150.0,0.00012196,2]
[400132502,1767142467305,150.0,0.00012554,2]
[400132503,1767142499485,4003.8957135,0.00011998,2]
[400132504,1767142536406,150.0,0.00012149,2]
[400132505,1767142536847,150.0,0.00012728,2]
[400132507,1767142603557,150.0,0.00012163,2]
[400132508,1767142603962,150.0,0.00012742,2]
[400132511,1767142668961,150.0,0.00012766,2]
[400132512,1767142734967,150.0,0.00012165,2]
[400132513,1767142735431,150.0,0.00012745,2]
[400132514,1767142745566,591.0,0.00028767,120]
[400132515,1767142795944,2256.38705534,0.00012,2]
[400132516,1767142795968,1111.08365259,0.00012,2]
[400132517,1767142800147,150.0,0.00012165,2]
[400132518,1767142800546,150.0,0.00012745,2]
[400132522,1767142854097,20951.34697482,0.00028,120]
[400132523,1767142865240,150.0,0.00012161,2]
[400132529,1767142904271,205.584,0.00012605,2]
[400132536,1767143122497,150.0,0.00012708,2]
[400132537,1767143187945,150.0,0.00012734,2]
[400132542,1767143290202,7933.34234741,0.00012759,2]
[400132543,1767143290235,10000.01,0.00012759,2]
[400132544,1767143290265,10000.01,0.00012759,2]
[400132545,1767143290296,10000.01,0.00012759,2]
[400132546,1767143290329,10000.01,0.00012759,2]
[400132547,1767143290363,10000.01,0.00012759,2]
[400132548,1767143290397,10000.01,0.00012759,2]
[400132549,1767143290428,10000.01,0.00012759,2]
[400132550,1767143290458,10000.01,0.00012759,2]
[400132551,1767143290491,10000.01,0.00012759,2]
[400132552,1767143291254,-325.2294301,0.00012759,2]
[400132553,1767143292373,-4505.30749996,0.00012759,2]
[400132554,1767143292512,-10000.01,0.00012759,2]
[400132555,1767143292655,-10000.01,0.00012759,2]
[400132556,1767143292774,-10000.01,0.00012759,2]
[400132558,1767143293871,-544.06,0.00012759,2]
[400132559,1767143296635,-10000.01,0.00012759,2]
[400132560,1767143296752,-531.82573339,0.00012759,2]
[400132561,1767143296780,-10000.01,0.00012759,2]
[400132563,1767143296904,-10000.01,0.00012759,2]
[400132564,1767143297003,-10000.01,0.00012759,2]
[400132565,1767143297263,-10000.01,0.00012759,2]
[400132566,1767143297277,-10000.01,0.00012759,2]
[400132567,1767143297344,-10000.01,0.00012759,2]
[400132568,1767143297464,-10000.01,0.00012759,2]
[400132569,1767143297584,-10000.01,0.00012759,2]
[400132570,1767143297704,-10000.01,0.00012759,2]
[400132571,1767143297822,-10000.01,0.00012759,2]
[400132572,1767143297914,-10000.01,0.00012759,2]
[400132573,1767143298025,-10000.01,0.00012759,2]
[400132574,1767143298119,-10000.01,0.00012759,2]
[400132575,1767143298266,-10000.01,0.00012759,2]
[400132576,1767143298298,-671.18334278,0.00012759,2]
[400132577,1767143301040,-513.90419635,0.00012759,2]
[400132578,1767143305610,-419.61888068,0.00012759,2]
[400132579,1767143307779,-205.80722223,0.00012632,2]
[400132580,1767143311428,-231.69814697,0.00012632,2]
[400132581,1767143311752,-4327.85227812,0.00012632,2]
[400132582,1767143313393,-503.11240054,0.00012758,2]
[400132583,1767143314840,-218.71,0.00012758,2]
[400132584,1767143315614,1344.30544376,0.00012749,2]
[400132585,1767143315639,3655.69455624,0.00012749,2]
[400132586,1767143316837,-281.29,0.00012758,2]
[400132587,1767143317954,1958.52,0.00012329,2]
[400132588,1767143318385,-163.6362249,0.00012758,2]
[400132589,1767143318408,-82.46470804,0.00012758,2]
[400132590,1767143321056,-1084.2839174,0.00012758,2]
[400132591,1767143321085,-1166.74862544,0.00012758,2]
[400132592,1767143321112,-158.31764771,0.00012758,2]
[400132593,1767143321142,-1166.74862544,0.00012758,2]
[400132594,1767143321170,-1166.74862544,0.00012758,2]
[400132595,1767143321196,-14.31511714,0.00012758,2]
[400132596,1767143321413,-485.68488286,0.00012758,2]
[400132597,1767143321444,-1166.74862544,0.00012758,2]
[400132598,1767143321472,-1166.74862544,0.00012758,2]
[400132599,1767143321500,-201.54572907,0.00012758,2]
[400132600,1767143321528,-1166.74862544,0.00012758,2]
[400132601,1767143321558,-458.30839806,0.00012758,2]
[400132602,1767143321750,-356.94,0.00012758,2]
[400132603,1767143323277,-222.83310953,0.00012758,2]
[400132604,1767143323817,-128.66711785,0.00012758,2]
[400132605,1767143323847,-1166.74862544,0.00012758,2]
[400132606,1767143323875,-1166.74862544,0.00012758,2]
[400132607,1767143323905,-1166.74862544,0.00012758,2]
[400132608,1767143323933,-500.0,0.00012758,2]
[400132609,1767143323961,-500.0,0.00012758,2]
[400132610,1767143325983,-322.01555826,0.00012758,2]
[400132611,1767143326900,-844.73306718,0.00012758,2]
[400132612,1767143326930,-500.0,0.00012758,2]
[400132613,1767143326959,-500.0,0.00012758,2]
[400132614,1767143326988,-1166.74862544,0.00012758,2]
[400132615,1767143327020,-542.51520598,0.00012758,2]
[400132616,1767143327048,-500.0,0.00012758,2]
[400132617,1767143327077,-500.0,0.00012758,2]
[400132618,1767143327106,-392.0162028,0.00012758,2]
[400132619,1767143327235,-107.9837972,0.00012758,2]
[400132620,1767143327263,-373.53479812,0.00012758,2]
[400132621,1767143327290,-518.89116769,0.00012758,2]
[400132622,1767143327318,-500.0,0.00012758,2]
[400132623,1767143327348,-500.0,0.00012758,2]
[400132624,1767143327378,-1166.74862544,0.00012758,2]
[400132625,1767143327406,-500.0,0.00012758,2]
[400132626,1767143327435,-237.88244704,0.00012758,2]
[400132627,1767143327467,-1023.17970358,0.00012758,2]
[400132631,1767143330006,-1632.1,0.00012329,2]
[400132632,1767143330034,-143.56892186,0.00012758,2]
[400132633,1767143330062,-1166.74862544,0.00012758,2]
[400132634,1767143330209,-500.0,0.00012758,2]
[400132635,1767143330238,-1166.74862544,0.00012758,2]
[400132636,1767143330940,-155.7024382,0.00012758,2]
[400132637,1767143334828,-1319.29997572,0.00012631,2]
[400132638,1767143334857,-1011.04618724,0.00012758,2]
[400132639,1767143334890,-500.0,0.00012758,2]
[400132640,1767143334920,-1166.74862544,0.00012758,2]
[400132641,1767143335089,-8123.49193606,0.00012759,2]
[400132642,1767143339237,-1701.59,0.00012329,2]
[400132643,1767143340146,5000.0,0.00012631,2]
[400132646,1767143347734,566.0,0.00028767,120]
[400132647,1767143349299,1417.99,0.00012329,2]
[400132648,1767143351101,-300.0,0.00012757,2]
[400132649,1767143351122,-177.0,0.00012757,2]
[400132650,1767143351145,-863.39398282,0.00012758,2]
[400132651,1767143351165,-863.39398282,0.00012758,2]
[400132652,1767143351185,-863.39398282,0.00012758,2]
[400132653,1767143351206,-863.39398282,0.00012758,2]
[400132654,1767143351226,-863.39398282,0.00012758,2]
[400132655,1767143351248,-205.81846535,0.00012758,2]
[400132656,1767143359732,178.84,0.00012329,2]
[400132657,1767143359755,1002.82,0.00012329,2]
[400132658,1767143363147,5000.0,0.00012668,2]
[400132659,1767143370354,984.72,0.00012329,2]
[400132660,1767143380864,820.6,0.00012329,2]
[400132661,1767143385924,2191.87,0.00012668,2]
[400132662,1767143385946,2808.13,0.00012668,2]
[400132663,1767143391206,683.83,0.00012329,2]
[400132664,1767143401651,569.86,0.00012329,2]
[400132665,1767143408999,5000.0,0.00012668,2]
[400132666,1767143412100,474.88,0.00012329,2]
[400132667,1767143422510,395.74,0.00012329,2]
[400132677,1767143432291,67.57,0.00012668,2]
[400132678,1767143432315,4932.43,0.00012668,2]
[400132686,1767143432387,-205.13,0.00012703,2]
[400132688,1767143432397,-600.0,0.00012703,2]
[400132690,1767143432407,-275.148652,0.0001272,2]
[400132692,1767143432416,-154.62763968,0.00012756,2]
[400132694,1767143432426,-300.0,0.00012757,2]
[400132696,1767143432435,-300.0,0.00012757,2]
[400132698,1767143432445,-283.0,0.00012757,2]
[400132700,1767143432454,-300.0,0.00012757,2]
[400132702,1767143432463,-657.57551747,0.00012758,2]
[400132704,1767143432473,-863.39398282,0.00012758,2]
[400132706,1767143432482,-863.39398282,0.00012758,2]
[400132708,1767143432492,-863.39398282,0.00012758,2]
[400132710,1767143432500,-863.39398282,0.00012758,2]
[400132711,1767143432510,-863.39398282,0.00012758,2]
[400132713,1767143432519,-863.39398282,0.00012758,2]
[400132715,1767143432528,-872.77266367,0.00012758,2]
[400132718,1767143432538,-872.77266367,0.00012758,2]
[400132721,1767143432547,-872.77266367,0.00012758,2]
[400132723,1767143432556,-872.77266367,0.00012758,2]
[400132726,1767143432565,-872.77266367,0.00012758,2]
[400132728,1767143432574,-872.77266367,0.00012758,2]